bitfinex/quotes_ETHUSD_20220105
["timestamp","ask_amount","ask_price","bid_price","bid_amount"]
[1641407273039,0.619,3744.3,3744.2,0.001]
[1641407273438,0.319,3744.3,3743.8,0.61669171]
[1641407273642,1.33688,3744.6,3743.9,0.74851354]
[1641407273643,0.0008,3744.6,3743.9,0.74851354]
[1641407273839,0.0008,3744.6,3744.1,0.66762]
[1641407274239,0.0008,3744.6,3744.2,0.01762113]
[1641407274639,0.0008,3744.6,3744.2,1.01762113]
[1641407274842,0.0008,3744.6,3744.2,2.35264113]
[1641407275039,0.0008,3744.6,3744.3,0.01705271]
[1641407275239,0.0008,3744.6,3744.4,0.66747]
[1641407275738,0.0008,3744.6,3744.5,9.99544958]
[1641407276138,0.0008,3744.6,3744.5,10.99544958]
[1641407277347,0.66747,3746.0,3744.5,10.99544958]
[1641407277548,0.0008,3744.9,3744.8,0.6675]
[1641407277955,0.65850745,3746.0,3744.9,6.45]
[1641407278151,0.65850745,3746.0,3744.8,0.01421059]
[1641407278351,0.66748,3746.3,3745.8,1.06428031]
[1641407278352,0.66741,3746.3,3745.8,1.06428031]
[1641407278553,0.96741,3746.3,3745.8,1.06428031]
[1641407278754,0.96741,3746.3,3745.9,0.00795793]
[1641407279755,0.96741,3746.3,3746.0,0.53391159]
[1641407280054,0.96741,3746.3,3746.1,0.00682109]
[1641407283020,0.66741,3746.3,3746.1,0.00682109]
[1641407283320,2.00227,3746.6,3746.1,0.00682109]
[1641407283321,1.33485,3746.6,3746.1,0.00682109]
[1641407283521,1.93485,3746.6,3746.1,0.00682109]
[1641407283720,1.33485,3746.6,3746.1,0.00682109]
[1641407284344,4.21742,3746.5,3746.4,1.05756506]
[1641407284746,0.66742,3746.5,3746.4,1.06268087]
[1641407285950,0.66742,3746.5,3746.4,0.00511581]
[1641407286348,0.66742,3746.5,3746.1,0.00682109]
[1641407287350,0.66742,3746.5,3746.1,0.80438824]
[1641407287796,0.66813,3746.8,3746.2,0.00625266]
[1641407287997,0.0008,3746.8,3746.2,0.00625266]
[1641407289801,0.0008,3746.8,3746.7,1.33974696]
[1641407290203,0.0008,3746.8,3746.7,1.3431575]
[1641407291203,0.66732,3746.9,3746.7,1.3431575]
[1641407291663,0.66732,3746.9,3746.8,0.00284212]
[1641407296121,1.28632,3746.9,3746.8,0.00284212]
[1641407296326,1.28632,3746.9,3745.8,0.00852636]
[1641407296524,0.66737,3746.5,3745.8,0.00852636]
[1641407297126,1.33479,3746.5,3745.9,0.61366618]
[1641407297331,0.66737,3746.5,3745.9,0.61366618]
[1641407297528,0.319,3747.4,3746.0,0.00738951]
[1641407297726,0.619,3747.4,3746.0,0.01957849]
[1641407297928,0.319,3747.4,3746.0,2.74946653]
[1641407298127,0.00113684,3747.5,3746.1,1.00682109]
[1641407298327,0.00113684,3747.5,3746.2,3.87448804]
[1641407298527,0.00113684,3747.5,3746.8,0.66706]
[1641407298727,0.00113684,3747.5,3746.9,5.915657]
[1641407298948,0.00113684,3747.5,3747.0,1.1379]
[1641407299153,0.00113684,3747.5,3747.0,2.13960527]
[1641407299353,0.00113684,3747.5,3747.4,0.99955687]
[1641407300454,0.66711,3748.1,3747.4,0.99955687]
[1641407300857,0.00397896,3748.0,3747.4,0.99955687]
[1641407301256,0.00341054,3747.9,3747.4,0.99955687]
[1641407301654,0.00284211,3747.8,3747.4,0.99955687]
[1641407302155,0.00227369,3747.7,3747.4,0.99955687]
[1641407302459,0.00170527,3747.6,3747.4,0.99955687]
[1641407302902,5.7206,3749.6,3747.5,7.3]
[1641407303104,2.66872,3749.7,3747.6,1.0]
[1641407303303,0.0096632,3749.2,3747.6,1.0]
[1641407303502,0.0096632,3749.2,3749.0,0.64272973]
[1641407303708,0.00909478,3749.1,3749.0,0.64272973]
[1641407304109,5.70909478,3749.1,3749.0,0.64272973]
[1641407304711,0.00909478,3749.1,3749.0,0.64272973]
[1641407305513,5.34379478,3749.1,3749.0,0.64272973]
[1641407306751,6.01071478,3749.1,3749.0,0.64272973]
[1641407312006,9.51430396,3749.1,3748.0,3.894]
[1641407312205,0.66704,3748.5,3748.0,3.894]
[1641407312402,0.66704,3748.5,3747.5,2.58328]
[1641407312604,0.00511581,3748.4,3747.5,1.33398]
[1641407313002,0.00454739,3748.3,3748.0,0.96034381]
[1641407313402,0.00397897,3748.2,3748.1,0.67012687]
[1641407313602,0.00397897,3748.2,3747.5,1.33398]
[1641407313803,3.12830125,3748.2,3747.1,3.68013685]
[1641407314060,0.6672529,3748.0,3747.2,5.3373]
[1641407314259,0.6672529,3748.0,3747.2,5.33900527]
[1641407314260,3.59872825,3747.9,3747.2,5.33900527]
[1641407314457,3.60100195,3747.9,3747.3,0.00113684]
[1641407314663,0.00170527,3747.8,3747.3,0.00113684]
[1641407314862,0.319,3747.7,3747.3,0.00113684]
[1641407315062,0.98732685,3747.7,3747.6,0.6519747]
[1641407315263,6.32202685,3747.7,3747.6,0.6519747]
[1641407315866,6.31492029,3747.7,3747.6,0.6519747]
[1641407316265,0.3,3747.6,3747.3,0.00113684]
[1641407316466,1.65355,3747.5,3747.3,0.00113684]
[1641407316667,12.6347,3747.4,3747.3,0.00113684]
[1641407316863,12.6347,3747.4,3747.2,5.3373]
[1641407316864,7.3,3747.3,3747.2,5.3373]
[1641407317064,0.3,3747.2,3745.2,7.9593758]
[1641407317268,0.83863879,3746.2,3745.2,7.9593758]
[1641407317465,0.66757,3745.8,3745.3,0.01136847]
[1641407317908,0.319,3745.7,3745.3,0.01136847]
[1641407318109,5.3347,3745.6,3745.3,0.01136847]
[1641407318308,0.319,3745.5,3745.2,3.91196847]
[1641407318513,7.96777,3745.4,3744.8,1.7893758]
[1641407318710,6.45242979,3744.9,3744.8,1.7893758]
[1641407318910,12.10612979,3744.9,3744.8,1.7893758]
[1641407319108,12.70612979,3744.9,3744.8,1.7893758]
[1641407319310,7.30612979,3744.9,3744.8,1.7893758]
[1641407319509,7.30612979,3744.9,3744.2,4.08724025]
[1641407319510,5.3347,3744.9,3744.2,0.50831482]
[1641407319713,5.3347,3744.9,3744.2,1.17596482]
[1641407319913,5.3347,3744.9,3744.3,0.00568424]
[1641407323459,0.95376888,3744.8,3744.4,0.63283365]
[1641407323664,5.3347,3744.9,3744.4,0.63283365]
[1641407323862,5.3347,3744.9,3744.5,0.00454739]
[1641407325514,0.66771,3744.8,3744.5,0.00454739]
[1641407328026,5.3347,3744.9,3744.5,0.00454739]
[1641407329260,6.00239,3744.9,3744.5,0.00454739]
[1641407330466,6.00239,3744.9,3744.5,0.84725636]
[1641407330668,5.2281,3744.9,3744.5,0.84725636]
[1641407330867,5.2281,3744.9,3744.8,6.16260062]
[1641407330868,3.2585,3744.9,3744.8,6.16260062]
[1641407331271,3.2585,3744.9,3744.8,1.01544274]
[1641407331475,5.4716,3746.6,3744.8,1.01544274]
[1641407331476,1.21992924,3747.2,3744.9,7.3]
[1641407331668,0.66731,3747.3,3746.1,0.9040373]
[1641407332070,0.66731,3747.3,3745.9,0.01215795]
[1641407332270,0.9544916,3747.4,3745.1,1.1624]
[1641407332271,15.919,3747.2,3745.1,1.1624]
[1641407332469,15.869,3747.2,3745.1,1.1624]
[1641407332709,1.2990523,3746.1,3745.4,0.5392761]
[1641407332906,1.2990523,3746.1,3745.2,0.00170528]
[1641407333112,0.00284211,3746.0,3745.4,1.06329257]
[1641407333505,0.00227369,3745.9,3745.4,1.06329257]
[1641407333908,0.00170526,3745.8,3745.4,1.06329257]
[1641407334209,0.00113684,3745.7,3745.4,1.06329257]
[1641407334406,0.00113684,3745.7,3745.5,0.57867532]
[1641407340900,0.00113684,3745.7,3745.2,0.00170528]
[1641407341102,0.66869684,3745.7,3745.2,0.00170528]
[1641407341304,0.66869684,3745.7,3745.1,0.0022737]
[1641407341507,0.96869684,3745.7,3745.1,0.0022737]
[1641407341708,2.6776,3745.6,3744.8,0.00397897]
[1641407342108,2.6776,3745.6,3744.2,5.0609]
[1641407342109,2.6776,3745.6,3744.7,0.00454739]
[1641407342309,0.59524561,3745.2,3744.6,0.00511582]
[1641407342510,0.66767,3745.0,3744.6,0.00511582]
[1641407342711,1.33539,3745.0,3744.6,0.00511582]
[1641407343009,1.33539,3745.0,3744.4,0.00625266]
[1641407343711,1.33539,3745.0,3744.4,0.64563281]
[1641407343951,1.33539,3745.0,3744.5,1.05013501]
[1641407344149,1.33539,3745.0,3744.5,1.05581925]
[1641407344354,1.33539,3745.0,3744.6,0.00511582]
[1641407344755,1.33539,3745.0,3744.4,0.00625266]
[1641407347063,0.66767,3745.0,3744.4,0.00625266]
[1641407347261,0.66764,3745.2,3744.4,0.00625266]
[1641407347704,0.319,3745.3,3744.4,0.00625266]
[1641407347705,0.619,3745.3,3744.4,0.00625266]
[1641407347906,0.319,3745.3,3745.0,0.66137362]
[1641407348106,1.63644684,3745.7,3745.1,0.86592038]
[1641407348107,2.6776,3745.2,3745.1,0.86592038]
[1641407348309,2.6776,3745.2,3745.1,0.86819408]
[1641407355708,2.6776,3745.2,3745.1,0.0022737]
[1641407356308,2.6776,3745.2,3744.5,0.00568424]
[1641407356509,2.6776,3745.2,3744.5,4.28557467]
[1641407356711,2.6776,3745.2,3744.5,1.34076124]
[1641407356909,2.6776,3745.2,3744.6,0.00511582]
[1641407357709,2.6776,3745.2,3745.1,3.3938808]
[1641407357910,2.6776,3745.2,3745.1,1.39672949]
[1641407358109,2.6776,3745.2,3745.1,1.39900319]
[1641407363107,2.9776,3745.2,3745.1,0.0022737]
[1641407363510,2.9776,3745.2,3744.5,0.00568424]
[1641407363809,2.9776,3745.2,3744.3,0.00682109]
[1641407363810,0.3,3745.1,3744.3,0.00682109]
[1641407364008,2.6776,3745.2,3744.3,0.00682109]
[1641407364211,2.6776,3745.2,3745.0,0.62314357]
[1641407364608,2.9776,3745.2,3745.1,0.0022737]
[1641407365212,2.9776,3745.2,3745.1,0.15366571]
[1641407365809,2.6776,3745.2,3745.1,0.15366571]
[1641407366008,2.9776,3745.2,3745.1,0.15366571]
[1641407366858,2.9776,3745.2,3745.1,0.0022737]
[1641407367260,2.9776,3745.2,3745.0,0.00284212]
[1641407367460,8.58666,3745.1,3745.0,0.00284212]
[1641407367862,0.98666,3745.1,3744.6,0.00511582]
[1641407368062,3.2966,3745.1,3744.6,0.00511582]
[1641407368461,3.2966,3745.1,3744.1,1.33615332]
[1641407368462,3.2966,3745.1,3744.8,0.57236967]
[1641407368759,3.2966,3745.1,3744.9,0.00341055]
[1641407369161,2.6776,3745.1,3744.9,0.00341055]
[1641407370209,2.6776,3745.1,3745.0,8.08075393]
[1641407370619,2.6776,3745.1,3745.0,0.78359605]
[1641407371916,2.6776,3745.1,3745.0,4.53359605]
[1641407372620,2.6776,3745.1,3745.0,0.78359605]
[1641407374057,2.6776,3745.1,3745.0,2.14239466]
[1641407374558,2.6776,3745.1,3745.0,0.78359605]
[1641407375256,2.6776,3745.1,3745.0,10.2514467]
[1641407375458,1.21992924,3746.6,3745.1,7.3]
[1641407375660,1.21992924,3746.6,3745.8,0.6673]
[1641407375856,0.00568423,3746.5,3745.2,1.00170528]
[1641407376256,0.00511581,3746.4,3745.4,1.33459]
[1641407376463,0.00511581,3746.4,3745.8,2.6690561]
[1641407376664,1.21992924,3747.1,3745.8,2.6690561]
[1641407376665,0.00454738,3746.3,3745.8,2.6690561]
[1641407376863,0.00454738,3746.3,3745.9,5.3392]
[1641407377063,0.00397896,3746.2,3745.9,5.3392]
[1641407377264,0.00397896,3746.2,3746.0,0.66727]
[1641407377464,0.66727,3747.2,3746.1,5.3389]
[1641407377708,0.66727,3747.2,3746.2,0.6672482]
[1641407377909,0.00909477,3747.1,3746.2,0.6672482]
[1641407378312,0.96727,3747.2,3746.2,0.6672482]
[1641407378313,0.00852635,3747.0,3746.2,0.6672482]
[1641407378512,0.00852635,3747.0,3746.1,6.69743887]
[1641407378711,0.00795792,3746.9,3746.7,0.77654438]
[1641407379111,0.96727,3747.2,3746.7,0.77654438]
[1641407379112,0.0073895,3746.8,3746.7,0.77654438]
[1641407382366,3.0340083,3746.8,3746.7,0.77654438]
[1641407382968,0.0073895,3746.8,3746.7,0.92786741]
[1641407385312,3.03380497,3746.8,3746.7,0.92786741]
[1641407387318,0.0073895,3746.8,3746.7,0.92786741]
[1641407389053,3.03379391,3746.8,3746.7,0.92786741]
[1641407390758,3.03379391,3746.8,3746.7,0.15132303]
[1641407391562,3.33379391,3746.8,3746.7,0.15132303]
[1641407391762,3.33379391,3746.8,3746.4,1.5098619]
[1641407392164,0.00682108,3746.7,3746.4,1.5098619]
[1641407392464,0.00625265,3746.6,3746.5,0.67522143]
[1641407393308,0.00625265,3746.6,3746.5,0.82654446]
[1641407393309,3.03265706,3746.6,3746.5,0.82654446]
[1641407394610,3.03265706,3746.6,3746.5,3.97654446]
[1641407394812,3.03265706,3746.6,3746.5,0.82654446]
[1641407395612,0.00625265,3746.6,3746.5,0.82654446]
[1641407396216,0.00625265,3746.6,3746.5,0.67522143]
[1641407397863,0.00625265,3746.6,3746.5,0.82653331]
[1641407398264,0.00625265,3746.6,3746.5,3.85363589]
[1641407398667,0.00625265,3746.6,3746.5,10.19193589]
[1641407399563,0.00625265,3746.6,3746.5,7.28992137]
[1641407399763,0.00625265,3746.6,3746.5,6.44122016]
[1641407400213,0.00625265,3746.6,3746.5,5.48959879]
[1641407400611,0.00625265,3746.6,3746.5,5.46485579]
[1641407401218,0.00625265,3746.6,3746.5,5.43929579]
[1641407401419,0.00625265,3746.6,3746.5,5.62465076]
[1641407401817,0.00625265,3746.6,3746.5,5.43637766]
[1641407402017,0.00625265,3746.6,3746.5,5.30805777]
[1641407406367,0.00625265,3746.6,3746.5,4.70528878]
[1641407407370,0.0008,3746.9,3746.5,4.70528878]
[1641407407715,0.86358305,3746.8,3746.5,4.70528878]
[1641407408109,1.33489,3746.7,3746.5,4.70528878]
[1641407408512,9.13730443,3746.6,3746.5,4.70528878]
[1641407408714,10.35630443,3746.6,3746.5,6.748e-05]
[1641407408914,10.65630443,3746.6,3746.5,6.748e-05]
[1641407409113,7.3,3746.5,3745.0,0.4129603]
[1641407409318,0.66763,3745.7,3745.0,0.4129603]
[1641407409515,2.96437138,3745.6,3745.1,0.0022737]
[1641407409716,3.93201928,3745.6,3745.1,0.0022737]
[1641407409915,0.63900919,3745.5,3745.1,0.0022737]
[1641407410117,2.73900393,3745.4,3745.1,0.0022737]
[1641407410316,0.63900919,3745.5,3745.1,0.0022737]
[1641407410516,0.3,3745.4,3745.1,0.0022737]
[1641407410716,0.93900919,3745.5,3745.1,0.0022737]
[1641407410917,0.66765,3745.3,3745.1,0.0022737]
[1641407411118,6.33562736,3745.2,3745.1,0.0022737]
[1641407411320,3.13562736,3745.2,3745.1,0.0022737]
[1641407411765,0.3,3745.2,3745.1,0.0022737]
[1641407411962,0.96765,3745.3,3745.1,0.0022737]
[1641407412161,7.619,3745.2,3745.0,2.00504153]
[1641407412461,7.619,3745.2,3742.4,5.47365679]
[1641407412462,7.3,3745.0,3743.4,1.34739445]
[1641407412663,0.6678911,3744.5,3743.4,1.34739445]
[1641407412861,0.6678911,3744.5,3743.7,0.00795793]
[1641407412862,1.33594,3744.1,3743.7,0.00795793]
[1641407413063,1.54254491,3744.0,3743.7,0.00795793]
[1641407413561,1.54254491,3744.0,3743.2,1.81238516]
[1641407413562,9.3040377,3743.9,3743.2,1.81238516]
[1641407413761,0.6681294,3743.7,3743.5,0.00113685]
[1641407413963,5.519,3743.6,3743.5,0.00113685]
[1641407414261,0.919,3743.6,3743.5,0.00113685]
[1641407414463,5.69598038,3743.6,3743.5,0.00113685]
[1641407414760,0.6681253,3743.4,3743.3,0.00113684]
[1641407415206,0.9681253,3743.4,3743.3,0.00113684]
[1641407415411,1.6362753,3743.4,3743.3,0.00113684]
[1641407415611,0.3,3743.4,3743.3,0.00113684]
[1641407415810,1.24960244,3743.6,3743.3,0.00113684]
[1641407416412,1.24960244,3743.6,3743.4,0.53701231]
[1641407416813,1.24960244,3743.6,3743.3,0.00113684]
[1641407417413,0.64960244,3743.6,3743.3,0.00113684]
[1641407417614,0.66799,3743.5,3743.3,0.00113684]
[1641407418615,0.64960244,3743.6,3743.3,0.00113684]
[1641407419061,3.02914424,3743.4,3743.3,0.00113684]
[1641407419873,3.35394546,3743.4,3743.3,0.62220833]
[1641407420066,0.64960244,3743.4,3743.3,0.62220833]
[1641407420464,0.64960244,3743.4,3743.3,3.32220833]
[1641407422715,0.64960244,3743.4,3743.3,5.13359349]
[1641407423923,0.64960244,3743.4,3743.3,3.32220833]
[1641407424723,0.64960244,3743.4,3743.3,5.13359349]
[1641407426227,0.94960244,3743.4,3743.3,5.13359349]
[1641407426770,0.64960244,3743.4,3743.3,5.13359349]
[1641407426971,3.67855226,3743.4,3743.3,3.32220833]
[1641407427473,3.67855226,3743.4,3743.3,2.70113684]
[1641407428472,1.21992924,3744.1,3743.3,2.70113684]
[1641407428473,1.21992924,3744.1,3743.5,7.3]
[1641407428673,1.21992924,3744.1,3744.0,7.3123126]
[1641407428872,3.7007,3746.0,3744.0,7.3123126]
[1641407428873,1.21992924,3744.6,3744.0,7.3123126]
[1641407429075,1.21992924,3744.6,3744.0,8.3123126]
[1641407429274,0.00341055,3744.3,3744.1,2.53815397]
[1641407429476,0.00341055,3744.3,3744.1,3.20570397]
[1641407429775,5.04985749,3745.4,3744.2,7.96757]
[1641407429980,5.04985749,3745.4,3744.8,0.6674123]
[1641407430253,5.04985749,3745.4,3744.9,0.9552046]
[1641407430647,3.24907974,3746.3,3744.9,0.9552046]
[1641407430648,1.21992924,3746.1,3744.9,0.9552046]
[1641407431052,0.00795793,3745.6,3744.9,1.9552046]
[1641407431251,0.00795793,3745.6,3744.9,0.9552046]
[1641407431455,0.0073895,3745.5,3744.9,1.9552046]
[1641407431652,0.0073895,3745.5,3744.9,3.2900346]
[1641407431853,0.00682108,3745.4,3744.9,3.2900346]
[1641407432252,15.6,3746.8,3744.9,3.2900346]
[1641407432253,0.00625266,3745.3,3744.9,3.2900346]
[1641407432452,0.00625266,3745.3,3745.0,2.97745602]
[1641407432656,0.00568423,3745.2,3745.0,2.99344719]
[1641407432854,3.82992825,3747.2,3745.1,8.43819997]
[1641407433054,3.82992825,3747.2,3745.2,3.05269138]
[1641407433253,0.00852636,3746.7,3745.8,1.33448]
[1641407433457,0.00852636,3746.7,3745.4,1.33446]
[1641407433657,3.24907974,3748.1,3745.4,1.33446]
[1641407433658,0.00795793,3746.6,3746.5,6.64725296]
[1641407434059,0.00795793,3746.6,3746.5,1.43282281]
[1641407435261,0.00795793,3746.6,3746.5,7.28282281]
[1641407435460,0.00795793,3746.6,3746.5,11.37040216]
[1641407435661,0.00795793,3746.6,3746.5,8.28282281]
[1641407436261,0.00795793,3746.6,3746.5,13.62112281]
[1641407436462,5.793e-05,3746.6,3746.5,13.92112281]
[1641407436761,5.793e-05,3746.6,3746.5,14.22112281]
[1641407436961,6.17,3748.4,3747.4,0.66696]
[1641407437164,6.17,3748.4,3747.9,0.66695]
[1641407437362,6.17,3748.4,3748.0,0.56445777]
[1641407438018,6.17,3748.4,3748.3,0.82513543]
[1641407438418,6.18023162,3748.4,3748.3,0.82513543]
[1641407439829,0.0008,3748.7,3748.4,7.3]
[1641407440030,0.0008,3748.7,3748.5,1.0]
[1641407440231,0.00113685,3748.6,3748.5,1.0]
[1641407440632,0.00113685,3748.6,3748.5,1.3]
[1641407440830,0.00113685,3748.6,3748.5,6.9545]
[1641407441033,0.00113685,3748.6,3748.5,7.62112]
[1641407441232,0.00113685,3748.6,3748.5,13.2044607]
[1641407441464,3.685e-05,3748.6,3748.5,13.2044607]
[1641407441668,3.685e-05,3748.6,3748.5,13.34266067]
[1641407441866,1.21992924,3751.0,3748.6,7.3]
[1641407442170,0.01307374,3750.9,3749.1,0.96658]
[1641407442469,0.01250532,3750.8,3750.3,0.93880769]
[1641407442666,0.01250532,3750.8,3750.4,5.90122287]
[1641407442866,0.01193689,3750.7,3750.4,5.3328]
[1641407443366,1.62631631,3751.2,3750.4,5.3328]
[1641407443367,1.21992924,3750.5,3750.4,5.3328]
[1641407443669,1.23072929,3750.5,3750.4,5.3328]
[1641407443866,1.23072929,3750.5,3750.4,6.29542369]
[1641407444066,1.23072929,3750.5,3750.4,5.87430908]
[1641407444267,0.01080005,3750.5,3750.4,5.87430908]
[1641407444466,0.01080005,3750.5,3750.4,5.3328]
[1641407445069,6.33072929,3750.5,3750.4,5.3328]
[1641407445515,6.93072929,3750.5,3750.4,5.0217]
[1641407445719,5.71080005,3750.5,3749.6,1.36087372]
[1641407445917,0.319,3750.4,3749.5,1.36087372]
[1641407446118,16.92923162,3750.4,3749.5,1.36087372]
[1641407446318,0.0096632,3750.3,3749.5,1.36087372]
[1641407446520,0.66691,3750.2,3749.7,0.66714911]
[1641407446822,6.93827783,3749.8,3749.7,0.66714911]
[1641407447021,7.23827783,3749.8,3748.8,5.17007372]
[1641407447221,7.24509891,3749.8,3748.8,1.36087372]
[1641407447421,0.00625266,3749.7,3748.8,1.36087372]
[1641407447621,0.00625266,3749.7,3749.0,1.36087372]
[1641407447820,0.00568424,3749.6,3749.0,1.36087372]
[1641407448020,0.00568424,3749.6,3749.1,0.50723871]
[1641407448224,0.3,3749.9,3749.5,0.90193442]
[1641407448421,1.28907783,3750.1,3749.5,0.9352793]
[1641407448624,0.00682108,3749.8,3749.5,0.9352793]
[1641407449085,0.00682108,3749.8,3749.6,0.15122582]
[1641407449086,0.00625266,3749.7,3749.6,0.15122582]
[1641407449671,3.03076914,3749.7,3749.6,0.15122582]
[1641407450271,3.03076914,3749.7,3749.6,2.85122582]
[1641407454215,3.03076914,3749.7,3749.6,3.85122582]
[1641407454615,3.03076914,3749.7,3749.6,9.18502582]
[1641407455215,0.00625266,3749.7,3749.6,9.18502582]
[1641407455415,0.00625266,3749.7,3749.6,10.54589954]
[1641407456217,0.00625266,3749.7,3749.6,9.54589954]
[1641407456872,0.00625266,3749.7,3749.6,8.0338]
[1641407456873,3.03042268,3749.7,3749.6,8.0338]
[1641407457469,0.00625266,3749.7,3749.6,8.0338]
[1641407457870,0.0008,3750.1,3750.0,0.49374734]
[1641407458871,5.6008,3750.1,3750.0,0.49374734]
[1641407459074,0.3008,3750.1,3750.0,0.49374734]
[1641407459273,6.17,3751.1,3750.0,0.49374734]
[1641407459674,0.00284212,3750.2,3750.1,2.84296969]
[1641407459872,0.00284212,3750.2,3750.1,12.99874899]
[1641407460079,0.00284212,3750.2,3750.1,13.99874899]
[1641407460333,0.00284212,3750.2,3750.1,15.00574919]
[1641407460929,0.00284212,3750.2,3750.1,15.67221919]
[1641407461129,0.00284212,3750.2,3750.1,8.37221919]
[1641407461536,0.00284212,3750.2,3750.1,9.64758394]
[1641407461935,0.00284212,3750.2,3750.1,15.14758394]
[1641407462536,4.212e-05,3750.2,3750.1,15.14758394]
[1641407463135,4.212e-05,3750.2,3750.1,16.48035394]
[1641407464558,4.212e-05,3750.2,3750.1,11.28035394]
[1641407464960,0.0008,3750.4,3750.2,7.3]
[1641407465158,0.0008,3750.4,3750.3,17.11769051]
[1641407465562,0.00193684,3750.4,3750.3,17.11769051]
[1641407465763,3.684e-05,3750.4,3750.3,17.78406051]
[1641407465964,4.5894,3753.4,3750.4,7.3]
[1641407466164,4.5894,3753.4,3751.6,0.66625]
[1641407466165,6.0674,3752.9,3751.6,0.66625]
[1641407466367,0.01364217,3752.8,3751.6,0.66625]
[1641407466765,0.01307374,3752.7,3751.6,0.66625]
[1641407466967,0.66626,3753.6,3752.9,0.96833174]
[1641407467365,0.00454739,3753.5,3752.9,0.96833174]
[1641407467719,0.00397897,3753.4,3752.9,0.96833174]
[1641407467913,7.3,3753.3,3752.6,0.58392114]
[1641407468111,7.30341054,3753.3,3752.6,0.58392114]
[1641407468312,15.6,3753.8,3753.2,0.48052339]
[1641407468513,0.00352708,3754.3,3753.6,0.93981177]
[1641407468712,0.00568424,3753.7,3753.6,0.93981177]
[1641407469917,0.00568424,3753.7,3753.6,6.78981177]
[1641407470319,0.00568424,3753.7,3753.6,16.11801177]
[1641407470516,8.424e-05,3753.7,3753.6,16.41801177]
[1641407470723,0.00352708,3754.3,3753.7,7.3]
[1641407471018,3.684e-05,3753.9,3753.8,12.9469]
[1641407471218,6.17,3755.1,3753.9,7.3]
[1641407471472,16.88827783,3756.8,3754.1,7.3]
[1641407471673,0.01477901,3756.5,3755.6,1.33096]
[1641407471970,0.01421059,3756.4,3755.7,5.9442]
[1641407472172,0.01421059,3756.4,3755.8,1.320125]
[1641407472367,0.01364217,3756.3,3755.9,5.325]
[1641407472568,6.94,3756.9,3756.0,1.3]
[1641407472767,11.32778612,3758.0,3756.1,5.3247]
[1641407472967,7.41698889,3758.2,3756.3,0.66531]
[1641407473167,7.41698889,3758.2,3756.2,2.77322742]
[1641407473383,0.33197746,3758.5,3757.9,0.66505]
[1641407473582,3.24907974,3759.0,3758.0,8.09522742]
[1641407473583,3.02177974,3759.0,3758.0,8.09522742]
[1641407473772,2.71305495,3759.6,3758.3,7.3]
[1641407473967,2.0,3760.0,3758.4,10.75532742]
[1641407473968,2.09931643,3759.7,3758.4,10.75532742]
[1641407474170,2.0,3760.0,3758.4,10.75532742]
[1641407474171,2.0,3760.0,3758.9,0.012299]
[1641407474368,6.62664142,3760.7,3759.8,3.15123956]
[1641407474571,6.62664142,3760.7,3759.8,3.81587956]
[1641407474768,1.27182449,3760.8,3759.8,3.81587956]
[1641407474769,1.22182449,3760.8,3760.3,0.01283459]
[1641407474971,7.897e-05,3760.6,3760.4,5.3186]
[1641407475235,7.897e-05,3760.6,3760.5,5.369]
[1641407475437,7.897e-05,3760.6,3760.5,5.6374]
[1641407475636,7.897e-05,3760.6,3760.5,15.947044]
[1641407475842,7.897e-05,3760.6,3760.5,21.778819]
[1641407476047,7.897e-05,3760.6,3760.5,14.2151]
[1641407476236,0.02670528,3761.6,3760.7,7.3]
[1641407476440,0.0129248,3763.5,3760.8,5.637]
[1641407476639,0.00397896,3761.3,3760.8,8.41022742]
[1641407476842,2.77322742,3763.5,3762.3,0.61751331]
[1641407477039,2.97367052,3764.4,3762.3,1.05571328]
[1641407477239,2.97367052,3764.4,3762.4,0.319]
[1641407477240,0.02568122,3764.4,3762.4,0.319]
[1641407477741,0.01338702,3764.4,3764.1,26.28856007]
[1641407477940,0.01338702,3764.4,3764.2,1.52050918]
[1641407478139,0.01338702,3764.4,3764.3,0.319]
[1641407478339,0.01338702,3764.4,3764.3,0.619]
[1641407478544,6.17,3765.0,3764.3,0.619]
[1641407478739,6.94,3766.4,3764.3,0.619]
[1641407478978,6.94,3766.4,3765.0,3.991]
[1641407478979,10.52655327,3766.4,3765.0,3.991]
[1641407479181,0.34451637,3766.4,3765.8,3.14568046]
[1641407479383,7.29566764,3767.5,3766.0,7.3]
[1641407479581,1.39566764,3767.5,3766.7,3.991]
[1641407479781,1.39566764,3767.5,3766.0,7.6]
[1641407479782,0.0170527,3767.4,3767.2,3.991]
[1641407479981,3.12816259,3768.4,3767.2,3.991]
[1641407479982,3.12816259,3768.4,3767.3,3.6260908]
[1641407480180,0.01259591,3771.0,3768.7,0.92016933]
[1641407480181,25.978226,3769.7,3768.7,0.92016933]
[1641407480481,25.978226,3769.7,3767.4,2.76]
[1641407480482,0.00511581,3768.3,3767.4,2.46]
[1641407480785,0.00511581,3768.3,3766.5,3.85015498]
[1641407480786,2.08783087,3767.1,3766.5,3.3162916]
[1641407480980,2.08783087,3767.1,3765.5,2.653293]
[1641407481182,2.08783087,3767.1,3766.6,5.31434739]
[1641407481383,7.23931791,3766.7,3766.6,4.05793544]
[1641407481582,7.23931791,3766.7,3765.2,0.66358]
[1641407481583,7.3,3766.6,3765.2,0.66358]
[1641407481784,0.01227081,3767.6,3766.7,92.242737]
[1641407481989,0.319,3767.5,3766.8,5.3095]
[1641407482184,2.77322742,3767.4,3766.9,7.9641]
[1641407482383,2.0,3767.0,3766.9,74.95227524]
[1641407482582,2.94564861,3767.0,3766.9,76.337702]
[1641407482818,2.94564861,3767.0,3766.9,8.2163]
[1641407483017,2.91671516,3767.0,3766.9,8.2163]
[1641407483217,2.29006655,3767.0,3766.9,8.2163]
[1641407483416,2.38448055,3767.0,3766.9,8.03006406]
[1641407483619,0.77122575,3767.1,3766.9,8.03006406]
[1641407483821,0.319,3768.0,3766.9,8.03006406]
[1641407484017,0.319,3768.0,3767.0,2.77834323]
[1641407484218,0.00341054,3768.5,3767.1,5.91665306]
[1641407484421,0.00341054,3768.5,3767.1,5.92120045]
[1641407484620,0.319,3768.6,3767.2,0.9385906]
[1641407484621,0.7712,3767.4,3767.2,0.9385906]
[1641407484822,0.7712,3767.4,3767.3,5.3088]
[1641407485122,0.7712,3767.4,3767.3,5.31221054]
[1641407485123,0.6712,3767.4,3767.3,5.31221054]
[1641407485527,2.6712,3767.4,3767.3,5.31221054]
[1641407485722,0.0008,3767.7,3767.3,5.31221054]
[1641407485923,0.0008,3767.7,3767.3,12.84675392]
[1641407486124,0.00094818,3768.0,3767.5,7.3]